bitfinex/quotes_BTCUSD_20250617
["timestamp","ask_amount","ask_price","bid_price","bid_amount"]
[1750169988778,1.31328695,105510.0,105500.0,0.00120194]
[1750169989198,1.33418695,105510.0,105500.0,0.00120194]
[1750169989827,1.35448695,105510.0,105500.0,0.00120194]
[1750169990037,6.40448695,105510.0,105500.0,0.00120194]
[1750169990894,1.35448695,105510.0,105500.0,0.00120194]
[1750169991141,0.72615927,105510.0,105500.0,0.00120194]
[1750169991347,1.24626252,105510.0,105500.0,0.00120194]
[1750169991781,6.29626252,105510.0,105500.0,0.00120194]
[1750169992002,6.35310337,105510.0,105500.0,0.00120194]
[1750169992211,6.35314337,105510.0,105500.0,0.00120194]
[1750169992836,6.49929259,105510.0,105500.0,0.00120194]
[1750169994275,6.57000287,105510.0,105500.0,0.00120194]
[1750169994824,6.56800287,105510.0,105500.0,0.00020194]
[1750169995032,6.57100287,105510.0,105500.0,0.00120194]
[1750169995438,6.57000287,105510.0,105500.0,0.00120194]
[1750169995870,6.56992287,105510.0,105500.0,0.00120194]
[1750169996239,6.57192287,105510.0,105500.0,0.00120194]
[1750169996630,6.27237365,105510.0,105500.0,0.00120194]
[1750169996832,6.47573365,105510.0,105500.0,0.00120194]
[1750169997032,6.40393365,105510.0,105500.0,0.00120194]
[1750169997734,6.42463365,105510.0,105500.0,0.00120194]
[1750169997944,6.27127365,105510.0,105500.0,0.00120194]
[1750169998154,6.57078287,105510.0,105500.0,0.00120194]
[1750169998359,7.06408287,105510.0,105500.0,0.00120194]
[1750170001457,6.86072287,105510.0,105500.0,0.00120194]
[1750170001660,7.06408287,105510.0,105500.0,0.00120194]
[1750170002704,6.86072287,105510.0,105500.0,0.00120194]
[1750170003149,7.06408287,105510.0,105500.0,0.00120194]
[1750170003534,6.86072287,105510.0,105500.0,0.00120194]
[1750170003746,7.06408287,105510.0,105500.0,0.00120194]
[1750170003955,7.09256587,105510.0,105500.0,0.00120194]
[1750170004866,7.29256587,105510.0,105500.0,0.00120194]
[1750170005597,7.29256587,105510.0,105480.0,0.0159112]
[1750170005598,0.86309079,105490.0,105480.0,0.0159112]
[1750170005800,1.52400023,105490.0,105480.0,0.01605324]
[1750170006462,1.34933938,105490.0,105480.0,0.01605324]
[1750170006621,0.3332757,105490.0,105480.0,0.05755324]
[1750170006826,0.42138879,105490.0,105480.0,0.29368527]
[1750170007080,0.23179736,105490.0,105480.0,0.31264513]
[1750170007283,0.23179736,105490.0,105480.0,0.28420516]
[1750170007284,0.42138942,105490.0,105480.0,0.28420516]
[1750170007438,0.76138942,105490.0,105480.0,0.30316565]
[1750170007645,0.06219779,105490.0,105480.0,0.3221256]
[1750170007851,0.00947885,105490.0,105480.0,0.3221256]
[1750170008074,0.23179718,105490.0,105480.0,0.3221256]
[1750170008271,0.56231788,105490.0,105480.0,0.3231256]
[1750170008476,0.56531788,105490.0,105480.0,0.3231256]
[1750170008647,0.55683885,105490.0,105480.0,0.3221256]
[1750170008881,0.56631788,105490.0,105480.0,0.3221256]
[1750170009069,0.56531788,105490.0,105480.0,0.3221256]
[1750170009274,0.42415639,105490.0,105480.0,0.3221256]
[1750170009474,0.58523639,105490.0,105480.0,0.3231256]
[1750170009669,0.56627788,105490.0,105480.0,0.3231256]
[1750170009919,0.35347876,105490.0,105480.0,0.3231256]
[1750170010334,0.004,105490.0,105480.0,0.3231256]
[1750170010507,0.02295815,105490.0,105480.0,0.30416565]
[1750170010721,0.01347894,105490.0,105480.0,0.3231256]
[1750170010942,0.004,105490.0,105480.0,0.3231256]
[1750170011886,0.35895599,105500.0,105490.0,0.25275012]
[1750170012061,0.43063128,105500.0,105490.0,0.30344357]
[1750170012275,0.42115261,105500.0,105490.0,0.32240163]
[1750170012482,0.41167421,105500.0,105490.0,0.32240163]
[1750170012961,0.37791261,105500.0,105490.0,0.32240163]
[1750170013172,0.58223261,105500.0,105490.0,0.32540163]
[1750170013374,0.57275421,105500.0,105490.0,0.32540163]
[1750170013515,0.39371786,105500.0,105490.0,0.32540163]
[1750170013728,0.55379786,105500.0,105490.0,0.32540163]
[1750170013916,0.39371786,105500.0,105490.0,0.32540163]
[1750170014118,0.41267403,105500.0,105490.0,0.32540163]
[1750170014428,0.06319581,105500.0,105490.0,0.32640163]
[1750170014630,0.07267394,105500.0,105490.0,0.32640163]
[1750170014985,0.08215216,105500.0,105490.0,0.32640163]
[1750170015642,0.05371786,105500.0,105490.0,0.32640163]
[1750170015819,0.04424,105500.0,105490.0,0.32640163]
[1750170016049,0.001,105500.0,105490.0,0.32640163]
[1750170016539,0.001,105500.0,105490.0,0.98723107]
[1750170016745,0.001,105500.0,105490.0,0.42264339]
[1750170016946,0.001,105500.0,105490.0,0.58268339]
[1750170017771,0.001,105500.0,105490.0,0.58168339]
[1750170018354,0.04324,105510.0,105500.0,0.26150838]
[1750170018596,0.24227263,105510.0,105500.0,0.26937347]
[1750170018803,0.66577522,105510.0,105500.0,0.27885178]
[1750170018991,0.47621973,105510.0,105500.0,0.27885178]
[1750170019188,0.47621973,105510.0,105500.0,0.28832982]
[1750170019618,0.08114973,105510.0,105500.0,0.28832982]
[1750170019859,0.06319446,105510.0,105500.0,0.28832982]
[1750170020062,0.07267196,105510.0,105500.0,0.28832982]
[1750170020383,0.05371714,105510.0,105500.0,0.28832982]
[1750170020604,0.07267196,105510.0,105500.0,0.28832982]
[1750170020869,0.41267196,105510.0,105500.0,0.28832982]
[1750170021039,0.40319446,105510.0,105500.0,0.28832982]
[1750170021238,0.41267205,105510.0,105500.0,0.28832982]
[1750170021669,0.41267196,105510.0,105500.0,0.28832982]
[1750170022430,0.39371714,105510.0,105500.0,0.28832982]
[1750170022651,0.40319446,105510.0,105500.0,0.28832982]
[1750170023078,0.39371714,105510.0,105500.0,0.28832982]
[1750170023284,0.40319446,105510.0,105500.0,0.28832982]
[1750170023595,0.81721964,105510.0,105500.0,0.28832982]
[1750170023800,0.82669723,105510.0,105500.0,0.28832982]
[1750170025281,0.39371714,105510.0,105500.0,0.28832982]
[1750170025486,0.40319446,105510.0,105500.0,0.28832982]
[1750170025686,0.41267196,105510.0,105500.0,0.28832982]
[1750170026559,0.61170522,105510.0,105500.0,0.28832982]
[1750170027186,0.42214955,105510.0,105500.0,0.28832982]
[1750170027393,1.0257304,105510.0,105500.0,0.28832982]
[1750170027605,1.02573103,105510.0,105500.0,0.28832982]
[1750170027802,0.41267241,105510.0,105500.0,0.28832982]
[1750170028012,0.56303437,105510.0,105500.0,0.28832982]
[1750170028220,0.58198946,105510.0,105500.0,0.28832982]
[1750170028423,0.59104714,105510.0,105500.0,0.28832982]
[1750170028631,0.58156946,105510.0,105500.0,0.28832982]
[1750170029522,0.57209187,105510.0,105500.0,0.28832982]
[1750170029744,0.58156946,105510.0,105500.0,0.28832982]
[1750170030353,0.78060263,105510.0,105500.0,0.28832982]
[1750170030565,0.78060263,105510.0,105500.0,0.28832991]
[1750170030777,0.78060335,105510.0,105500.0,0.28832991]
[1750170031883,0.77112603,105510.0,105500.0,0.27885178]
[1750170032090,0.77112603,105510.0,105500.0,0.28833]
[1750170032740,0.77112603,105510.0,105500.0,0.27885178]
[1750170033615,1.14724094,105510.0,105500.0,0.26937356]
[1750170033828,1.14724094,105510.0,105500.0,0.04912144]
[1750170034047,0.20853034,105500.0,105490.0,0.28368488]
[1750170034264,0.18959143,105490.0,105480.0,0.24662295]
[1750170034474,0.42350628,105490.0,105480.0,0.26842295]
[1750170034683,0.42350628,105490.0,105480.0,0.27790279]
[1750170034684,0.6225771,105490.0,105480.0,0.27790279]
[1750170034898,0.55132815,105490.0,105480.0,0.33306391]
[1750170035110,0.54184912,105490.0,105480.0,0.33306391]
[1750170035373,0.54184912,105490.0,105480.0,0.34254384]
[1750170035587,0.54284912,105490.0,105480.0,0.34754384]
[1750170035800,0.33429837,105490.0,105480.0,0.35702368]
[1750170036046,0.01047885,105490.0,105480.0,0.35702368]
[1750170036288,0.04412,105490.0,105480.0,0.35702368]
[1750170036527,0.001,105490.0,105480.0,0.35702368]
[1750170037833,0.001,105490.0,105480.0,0.45326544]
[1750170039141,0.001,105490.0,105480.0,0.85986446]
[1750170039560,0.001,105490.0,105480.0,0.85786446]
[1750170040718,0.001,105490.0,105480.0,1.01778446]
[1750170040926,0.001,105490.0,105480.0,0.45326544]
[1750170041135,0.001,105490.0,105480.0,0.61318544]
[1750170041361,0.001,105490.0,105480.0,0.45326544]
[1750170041573,0.001,105490.0,105480.0,0.61318544]
[1750170042207,0.001,105490.0,105480.0,0.61618544]
[1750170043053,0.001,105490.0,105480.0,1.02078446]
[1750170044116,0.001,105490.0,105480.0,0.61618544]
[1750170044756,0.001,105490.0,105480.0,0.45626544]
[1750170044972,0.001,105490.0,105480.0,0.61614544]
[1750170045629,0.001,105490.0,105480.0,0.45626544]
[1750170045840,0.001,105490.0,105480.0,0.61614544]
[1750170047310,0.001,105490.0,105480.0,0.45626544]
[1750170047532,0.001,105490.0,105480.0,0.61614544]
[1750170050714,0.001,105490.0,105480.0,0.45626544]
[1750170050922,0.001,105490.0,105480.0,0.51986368]
[1750170052811,0.71816158,105490.0,105480.0,0.47606368]
[1750170053018,0.51909058,105490.0,105480.0,0.47606368]
[1750170053254,0.50013207,105490.0,105480.0,0.47606368]
[1750170053501,0.09553305,105490.0,105480.0,0.47606368]
[1750170053748,0.66742511,105490.0,105480.0,0.02405324]
[1750170053989,1.19088341,105490.0,105480.0,0.02405324]
[1750170054212,1.21936441,105490.0,105480.0,0.02405324]
[1750170054538,0.73919031,105490.0,105480.0,0.22314311]
[1750170054631,0.69689031,105490.0,105480.0,0.26631583]
[1750170054864,0.36943817,105490.0,105480.0,0.28527569]
[1750170055088,0.5590296,105490.0,105480.0,0.26331583]
[1750170055317,0.5580296,105490.0,105480.0,0.25831583]
[1750170055546,0.5580296,105490.0,105480.0,0.26879585]
[1750170055800,0.7740371,105490.0,105480.0,0.28027515]
[1750170056270,0.9403171,105490.0,105480.0,0.28027515]
[1750170056739,0.3599586,105490.0,105480.0,0.28027515]
[1750170056962,0.35995815,105490.0,105480.0,0.32387515]
[1750170057200,0.35995806,105490.0,105480.0,0.32387515]
[1750170057648,0.35047894,105490.0,105480.0,0.32387515]
[1750170057894,0.341,105490.0,105480.0,0.32387515]
[1750170058131,0.001,105490.0,105480.0,0.32387515]
[1750170058852,0.01047894,105490.0,105480.0,0.48999515]
[1750170059315,0.01995815,105490.0,105480.0,0.48991515]
[1750170059527,0.01047894,105490.0,105480.0,0.48991515]
[1750170059972,0.01047885,105490.0,105480.0,0.48991515]
[1750170060428,0.01995788,105490.0,105480.0,0.48991515]
[1750170060637,0.35321014,105490.0,105480.0,0.48979515]
[1750170060857,0.34373102,105490.0,105480.0,0.48979515]
[1750170061711,0.33425199,105490.0,105480.0,0.48979515]
[1750170061928,0.34373093,105490.0,105480.0,0.48979515]
[1750170062264,0.01047885,105490.0,105480.0,0.32387515]
[1750170062510,0.0860542,105490.0,105480.0,0.23287487]
[1750170062776,0.01047885,105490.0,105480.0,0.2613152]
[1750170063006,0.34373102,105490.0,105480.0,0.2613152]
[1750170063223,0.36268953,105490.0,105480.0,0.2613152]
[1750170063470,0.35321014,105490.0,105480.0,0.2613152]
[1750170063712,0.36268953,105490.0,105480.0,0.2613152]
[1750170063940,0.37216901,105490.0,105480.0,0.23710297]
[1750170064173,0.37216901,105490.0,105480.0,0.40318297]
[1750170064628,0.34373102,105490.0,105480.0,0.40318297]
[1750170064850,0.55228105,105490.0,105480.0,0.01905324]
[1750170065070,0.55442326,105490.0,105480.0,0.21814302]
[1750170065288,0.73806089,105490.0,105480.0,0.01905324]
[1750170065736,0.73806089,105490.0,105480.0,0.21814311]
[1750170065737,0.66248581,105490.0,105480.0,0.21814311]
[1750170065952,0.66248581,105490.0,105480.0,0.01905324]
[1750170066355,0.66248581,105490.0,105480.0,0.04371345]
[1750170066587,0.66248581,105490.0,105480.0,0.24280332]
[1750170067315,0.66248581,105490.0,105480.0,0.2522837]
[1750170067932,0.64118581,105490.0,105480.0,0.2522837]
[1750170068173,0.35321059,105490.0,105480.0,0.28072367]
[1750170068388,0.36269007,105490.0,105480.0,0.28072367]
[1750170069039,0.58908256,105490.0,105480.0,0.2522837]
[1750170069275,0.61088256,105490.0,105480.0,0.26176381]
[1750170070615,0.61088256,105490.0,105480.0,0.27124383]
[1750170070616,0.58908256,105490.0,105480.0,0.27124383]
[1750170071731,0.19059143,105490.0,105480.0,0.23332285]
[1750170071959,0.9905652,105490.0,105480.0,0.01905324]
[1750170072442,1.35872708,105490.0,105480.0,0.01905324]
[1750170072667,1.38720808,105490.0,105480.0,0.01905324]
[1750170072892,1.06343494,105490.0,105480.0,0.01905324]
[1750170073333,1.38720808,105490.0,105480.0,0.01905324]
[1750170074503,1.35872708,105490.0,105480.0,0.01905324]
[1750170078014,1.50872708,105490.0,105480.0,0.01905324]
[1750170080530,1.67326793,105490.0,105480.0,0.01905324]
[1750170081542,1.34949479,105490.0,105480.0,0.01905324]
[1750170081716,1.37765909,105490.0,105480.0,0.01905324]
[1750170082334,0.9015408,105490.0,105480.0,0.01905324]
[1750170082536,1.22531394,105490.0,105480.0,0.01905324]
[1750170082769,1.25347824,105490.0,105480.0,0.01905324]
[1750170083046,1.22531394,105490.0,105480.0,0.01905324]
[1750170083459,0.8805408,105490.0,105480.0,0.01905324]
[1750170083676,1.03879394,105490.0,105480.0,0.01905324]
[1750170083925,0.6683808,105490.0,105480.0,0.23653117]
[1750170084137,0.10814504,105490.0,105480.0,0.28968308]
[1750170084366,0.75880892,105490.0,105480.0,0.28968308]
[1750170084617,0.4065977,105490.0,105480.0,0.28968308]
[1750170084830,0.41607691,105490.0,105480.0,0.28968308]
[1750170085046,0.4065977,105490.0,105480.0,0.33856216]
[1750170085296,0.3599577,105490.0,105480.0,0.33856216]
[1750170085517,0.0665977,105490.0,105480.0,0.33856216]
[1750170085755,0.001,105490.0,105480.0,0.33856216]
[1750170086292,0.001,105490.0,105480.0,0.75857706]
[1750170086508,0.001,105490.0,105480.0,0.92433706]
[1750170089094,0.001,105490.0,105480.0,1.2481102]
[1750170089319,0.001,105490.0,105480.0,0.92433706]
[1750170089681,0.001,105490.0,105480.0,0.92333706]
[1750170089877,0.001,105490.0,105480.0,0.92533706]
[1750170090333,0.001,105490.0,105480.0,1.2491102]
[1750170090483,0.001,105490.0,105480.0,1.26165105]
[1750170090898,0.001,105490.0,105480.0,1.26465105]
[1750170091500,0.39611615,105520.0,105510.0,0.26028772]
[1750170091877,0.40559248,105520.0,105510.0,0.47240783]
[1750170092098,0.87226377,105520.0,105510.0,0.0423]
[1750170092310,0.03790928,105510.0,105500.0,0.21799207]
[1750170092521,0.41830241,105510.0,105500.0,0.21799207]
[1750170092795,0.41830223,105510.0,105500.0,0.21799207]
[1750170092998,0.42777946,105510.0,105500.0,0.25869207]
[1750170093199,0.42777946,105510.0,105500.0,0.32097715]
[1750170093623,0.84788625,105520.0,105510.0,0.21798772]
[1750170093831,0.69220312,105520.0,105510.0,0.21798772]
[1750170094069,0.88174064,105520.0,105510.0,0.18955549]
[1750170094283,0.21798718,105510.0,105500.0,0.2613208]
[1750170094493,0.55123809,105510.0,105500.0,0.2179927]
[1750170094697,0.54176113,105510.0,105500.0,0.2085143]
[1750170095137,0.54176113,105510.0,105500.0,0.20003581]
[1750170095344,0.54176113,105510.0,105500.0,0.2085143]
[1750170095547,0.54176113,105510.0,105500.0,0.2179927]
[1750170095753,0.62852566,105510.0,105500.0,0.18955723]
[1750170095957,1.01516566,105510.0,105500.0,0.18955723]
[1750170096163,1.01516566,105510.0,105500.0,0.19903581]
[1750170096367,1.3389388,105510.0,105500.0,0.001]
[1750170096578,1.3593388,105510.0,105500.0,0.001]
[1750170096784,1.3389388,105510.0,105500.0,0.001]
[1750170097600,1.01516566,105510.0,105500.0,0.001]
[1750170098687,1.01516566,105510.0,105500.0,0.19057345]
[1750170098915,1.17968566,105510.0,105500.0,0.20005212]
[1750170099149,1.17020816,105510.0,105500.0,0.01047867]
[1750170099365,1.17020816,105510.0,105500.0,0.001]
[1750170099817,1.4949813,105510.0,105500.0,0.001]
[1750170100045,0.21802879,105490.0,105480.0,0.24646264]
[1750170100259,0.3522105,105490.0,105480.0,0.43930297]
[1750170100500,0.3522105,105490.0,105480.0,0.27490297]
[1750170101792,0.3522105,105490.0,105480.0,0.27690297]
[1750170102017,0.35221041,105490.0,105480.0,0.27690297]
[1750170102233,0.3616898,105490.0,105480.0,0.3418841]
[1750170102449,0.97804459,105490.0,105480.0,0.01805324]
[1750170102708,1.47705843,105490.0,105480.0,0.01805324]
[1750170102969,1.17478529,105490.0,105480.0,0.02105324]
[1750170103222,1.64855843,105490.0,105480.0,0.02105324]
[1750170103451,1.32478529,105490.0,105480.0,0.02105324]
[1750170103683,1.64855843,105490.0,105480.0,0.02105324]
[1750170104096,1.67111002,105490.0,105480.0,0.02105324]
[1750170104305,1.34733688,105490.0,105480.0,0.01905324]
[1750170104735,1.34633688,105490.0,105480.0,0.01605324]
[1750170105168,0.341,105490.0,105480.0,0.22926264]
[1750170105385,0.01047885,105490.0,105480.0,0.32478435]
[1750170105603,0.001,105490.0,105480.0,0.32478435]
[1750170111321,0.001,105490.0,105480.0,0.82568271]
[1750170111761,0.001,105490.0,105480.0,0.98912271]
[1750170112012,0.001,105490.0,105480.0,1.00366356]
[1750170112470,0.42505123,105520.0,105510.0,0.26008772]
[1750170112673,0.43452765,105520.0,105510.0,0.26008772]
[1750170112867,0.41557508,105520.0,105510.0,0.26008772]
[1750170113991,0.07557508,105520.0,105510.0,0.26008772]
[1750170114438,0.001,105520.0,105510.0,0.26008772]
[1750170114659,0.001,105520.0,105510.0,0.42328772]
[1750170114873,0.003,105520.0,105510.0,0.48368337]
[1750170115523,0.002,105520.0,105510.0,0.57992513]
[1750170115991,0.34,105530.0,105520.0,0.26006705]
[1750170116210,0.13012944,105540.0,105530.0,0.26004639]
[1750170116428,0.12065508,105540.0,105530.0,0.26004639]
[1750170116669,0.46065508,105540.0,105530.0,0.30572777]
[1750170116895,0.38508,105540.0,105530.0,0.30572777]
[1750170117107,0.34,105540.0,105530.0,0.30572777]
[1750170117547,0.03772805,105550.0,105540.0,0.21792577]
[1750170117760,0.44175506,105550.0,105540.0,0.25892577]
[1750170117972,0.40402701,105550.0,105540.0,0.31832142]
[1750170118190,0.41350074,105550.0,105540.0,0.31832142]
[1750170118373,0.40402701,105550.0,105540.0,0.31832142]
[1750170118844,0.40602692,105550.0,105540.0,0.31832142]
[1750170119055,0.43094127,105550.0,105540.0,0.31832142]
[1750170119267,0.42946772,105550.0,105540.0,0.31932142]
[1750170119715,0.43894127,105550.0,105540.0,0.31932142]
[1750170119943,0.37491435,105550.0,105540.0,0.31932142]
[1750170120173,0.348,105550.0,105540.0,0.31932142]
[1750170120441,0.008,105550.0,105540.0,0.31932142]
[1750170120684,0.009,105550.0,105540.0,0.31932142]
[1750170121180,0.008,105550.0,105540.0,0.31932142]
[1750170121427,0.008,105550.0,105540.0,0.41556318]
[1750170121632,0.34,105560.0,105550.0,0.25830511]
[1750170121860,0.34,105560.0,105550.0,0.46662649]
[1750170122732,0.34,105560.0,105550.0,0.30398649]
[1750170122977,0.34,105560.0,105550.0,0.42078511]
[1750170123211,0.34947256,105560.0,105550.0,0.25830511]
[1750170123478,0.34947247,105560.0,105550.0,0.42078511]
[1750170123677,0.36841804,105560.0,105550.0,0.25830511]
[1750170123891,0.36294512,105560.0,105550.0,0.42074511]
[1750170124078,0.37241786,105560.0,105550.0,0.42174511]
[1750170124282,0.38189087,105560.0,105550.0,0.25930511]
[1750170124501,0.37441786,105560.0,105550.0,0.31570484]
[1750170124710,0.38389078,105560.0,105550.0,0.25930511]
[1750170124918,0.9874869,105560.0,105550.0,0.21890529]
[1750170125121,0.97801425,105560.0,105550.0,0.21890547]
[1750170126170,1.12134859,105560.0,105550.0,0.001]
[1750170126361,1.11187558,105560.0,105550.0,0.19048365]
[1750170126581,1.11187558,105560.0,105550.0,0.001]
[1750170126782,1.11187558,105560.0,105550.0,0.19048365]
[1750170126985,1.13157558,105560.0,105550.0,0.19048365]
[1750170127191,1.13157558,105560.0,105550.0,0.001]
[1750170127394,1.24781734,105560.0,105550.0,0.19995774]
[1750170127615,1.22781734,105560.0,105550.0,0.20943174]
[1750170127823,1.20811734,105560.0,105550.0,0.20943174]
[1750170128663,1.19864406,105560.0,105550.0,0.19048365]
[1750170128861,1.22004406,105560.0,105550.0,0.001]
[1750170129360,1.22004406,105560.0,105550.0,0.19048365]
[1750170129778,1.22004406,105560.0,105550.0,0.19995783]
[1750170130918,1.22004406,105560.0,105550.0,0.001]
[1750170131142,1.24034406,105560.0,105550.0,0.001]
[1750170131366,1.22004406,105560.0,105550.0,0.001]
[1750170133491,1.24004406,105560.0,105550.0,0.001]
[1750170134802,1.35872216,105560.0,105550.0,0.001]
[1750170135029,1.34591665,105560.0,105550.0,0.001]
[1750170135247,1.66937611,105560.0,105550.0,0.001]
[1750170135469,1.37408095,105560.0,105550.0,0.001]
[1750170135687,1.23683351,105560.0,105550.0,0.001]
[1750170136107,1.18614033,105560.0,105550.0,0.001]
[1750170136559,1.27628955,105560.0,105550.0,0.001]
[1750170136778,1.27628955,105560.0,105520.0,0.25148991]
[1750170136779,0.02842657,105530.0,105520.0,0.25148991]
[1750170137009,0.07350657,105530.0,105520.0,0.25163249]
[1750170137248,0.2725021,105530.0,105520.0,0.26110873]
[1750170137679,0.2725021,105530.0,105520.0,0.25163249]
[1750170137891,0.2725021,105530.0,105520.0,0.29575129]
[1750170138106,0.08298245,105530.0,105520.0,0.30522753]
[1750170138326,0.08298245,105530.0,105520.0,0.00014204]
[1750170138327,1.00745407,105530.0,105520.0,0.00014204]
[1750170138595,0.99797828,105530.0,105520.0,0.00214204]
[1750170139019,1.11392004,105530.0,105520.0,0.00214204]
[1750170139674,1.13452004,105530.0,105520.0,0.00214204]
[1750170139899,1.13452004,105530.0,105520.0,0.00014204]
[1750170140081,1.11392004,105530.0,105520.0,0.20015643]
[1750170140326,1.09422004,105530.0,105520.0,0.20015643]
[1750170140540,1.09522004,105530.0,105520.0,0.20415643]
[1750170140752,1.09422004,105530.0,105520.0,0.25239533]
[1750170140954,1.09422004,105530.0,105520.0,0.20215643]
[1750170140955,1.09522004,105530.0,105520.0,0.20215643]
[1750170141591,1.05014004,105530.0,105520.0,0.21163321]
[1750170141807,1.25645968,105530.0,105520.0,0.22110972]
[1750170142018,1.25645968,105530.0,105520.0,0.21163321]
[1750170142219,1.24698407,105530.0,105520.0,0.21163321]
[1750170142440,1.23750819,105530.0,105520.0,0.00314204]
[1750170142855,1.03118819,105530.0,105520.0,0.00314204]
[1750170143063,1.23742819,105530.0,105520.0,0.00314204]
[1750170143287,1.40802819,105530.0,105520.0,0.00314204]
[1750170143501,1.42802819,105530.0,105520.0,0.00314204]
[1750170143776,1.44256904,105530.0,105520.0,0.00314204]
[1750170143963,1.91493392,105530.0,105520.0,0.00314204]
[1750170144172,1.51050705,105530.0,105520.0,0.00314204]
[1750170144621,1.91493392,105530.0,105520.0,0.00314204]
[1750170144825,1.91493392,105530.0,105520.0,0.00214204]
[1750170145039,1.51050705,105530.0,105520.0,0.00214204]
[1750170145451,6.96493392,105530.0,105520.0,0.00214204]
[1750170145872,6.56050705,105530.0,105520.0,0.00214204]
[1750170146129,6.58898305,105530.0,105520.0,0.00214204]
[1750170146748,6.38274305,105530.0,105520.0,0.00214204]
[1750170146977,6.58750305,105530.0,105520.0,0.00214204]
[1750170147183,6.58950305,105530.0,105520.0,0.00214204]
[1750170147382,6.38474305,105530.0,105520.0,0.00214204]
[1750170147566,6.31580504,105530.0,105520.0,0.00014204]
[1750170147796,1.44204904,105530.0,105520.0,0.00014204]
[1750170148205,1.44404904,105530.0,105520.0,0.00114204]
[1750170148567,1.44204904,105530.0,105520.0,0.00014204]
[1750170150462,1.84647591,105530.0,105520.0,0.00014204]
[1750170150679,1.44204904,105530.0,105520.0,0.00014204]
[1750170152096,1.44204904,105530.0,105520.0,0.00014204]
[1750170152535,1.44208904,105530.0,105520.0,0.00014204]
[1750170152744,1.29208904,105530.0,105520.0,0.00014204]
[1750170152948,1.47056404,105530.0,105520.0,0.00014204]
[1750170154016,1.56671326,105530.0,105520.0,0.00014204]
[1750170154222,1.97114013,105530.0,105520.0,0.00014204]
[1750170154449,1.56671326,105530.0,105520.0,0.00014204]
[1750170155206,1.57071326,105530.0,105520.0,0.00114204]
[1750170155889,6.62071326,105530.0,105520.0,0.00114204]
[1750170156739,7.02514013,105530.0,105520.0,0.00114204]
[1750170156947,7.56844013,105530.0,105520.0,0.00114204]
[1750170157353,0.54853016,105500.0,105490.0,0.0412]
[1750170157566,0.54853016,105500.0,105480.0,0.25285687]
[1750170157567,0.18959143,105490.0,105480.0,0.25733697]
[1750170157790,0.76441769,105490.0,105480.0,0.26681726]
[1750170157990,0.76441769,105490.0,105480.0,0.3228814]
[1750170158218,0.77389699,105490.0,105480.0,0.3228814]
[1750170158924,0.77389699,105490.0,105480.0,0.33250366]
[1750170159621,0.77389699,105490.0,105480.0,0.34198323]
[1750170159835,1.11262665,105500.0,105490.0,0.05217939]
[1750170159984,0.86911978,105500.0,105490.0,0.24177082]
[1750170160198,0.86811978,105500.0,105490.0,0.29201011]
[1750170160400,1.06778665,105500.0,105490.0,0.30148941]
[1750170160600,1.06778665,105500.0,105490.0,0.24925003]
[1750170160601,0.66335978,105500.0,105490.0,0.24925003]
[1750170160808,0.86811978,105500.0,105490.0,0.24925003]
[1750170161000,0.86911978,105500.0,105490.0,0.25125003]
[1750170161353,0.68853538,105500.0,105490.0,0.25125003]
[1750170161559,0.45603812,105500.0,105490.0,0.26172897]
[1750170161755,0.81600979,105500.0,105490.0,0.30087875]
[1750170162197,0.82548837,105500.0,105490.0,0.31035787]
[1750170162381,1.22043729,105500.0,105490.0,0.24277082]
[1750170162531,1.21095907,105500.0,105490.0,0.25225012]
[1750170162746,1.21095907,105500.0,105490.0,0.24277082]
[1750170163368,0.8065322,105500.0,105490.0,0.29898303]
[1750170163565,0.8065322,105500.0,105490.0,0.28950373]
[1750170163775,0.8065322,105500.0,105490.0,0.28002434]
[1750170163952,0.8065322,105500.0,105490.0,0.28950391]
[1750170164355,0.79705371,105500.0,105490.0,0.29898339]
[1750170164765,0.79705371,105500.0,105490.0,0.3084626]
[1750170165059,0.79705371,105500.0,105490.0,0.30846278]
[1750170165274,0.79705371,105500.0,105490.0,0.29898339]
[1750170165483,0.79705371,105500.0,105490.0,0.242771]
[1750170165693,0.79705371,105500.0,105490.0,0.25225048]
[1750170166752,0.78757513,105500.0,105490.0,0.0437]
[1750170168012,1.192002,105500.0,105490.0,0.242771]
[1750170168585,1.192002,105500.0,105490.0,0.2989834]
[1750170168959,1.11132445,105500.0,105490.0,0.09991249]
[1750170169259,1.11132445,105500.0,105490.0,0.28950383]
[1750170169529,1.20756621,105500.0,105490.0,0.0437]
[1750170169735,0.88381689,105500.0,105490.0,0.0437]
[1750170169968,1.20756621,105500.0,105490.0,0.0437]
[1750170171389,1.20756621,105500.0,105490.0,0.0241]
[1750170172123,6.86333146,105500.0,105490.0,0.003]
[1750170172387,6.60752015,105500.0,105490.0,0.003]
[1750170172590,1.46234507,105500.0,105490.0,0.003]
[1750170172796,1.39440706,105500.0,105490.0,0.003]
[1750170173008,0.81428453,105500.0,105490.0,0.002]
[1750170173598,0.19907082,105490.0,105480.0,0.05965335]
[1750170173794,0.7799419,105490.0,105480.0,0.05965335]
[1750170173968,0.80847884,105490.0,105480.0,0.05965335]
[1750170174176,0.48472952,105490.0,105480.0,0.12142576]
[1750170174460,0.55135708,105490.0,105480.0,0.31103516]
[1750170174624,0.57031541,105490.0,105480.0,0.34895578]
[1750170174812,0.62347489,105490.0,105480.0,0.68895578]
[1750170175014,0.61699541,105490.0,105480.0,0.68995578]
[1750170175249,0.62647489,105490.0,105480.0,0.68995587]
[1750170175426,0.62647489,105490.0,105480.0,0.69943571]
[1750170175664,0.62647543,105490.0,105480.0,0.68047594]
[1750170175836,0.61699613,105490.0,105480.0,0.68047594]
[1750170176043,0.59903726,105490.0,105480.0,0.46242576]
[1750170176367,0.59903726,105490.0,105480.0,0.40065335]
[1750170176910,0.6801391,105490.0,105480.0,0.40065335]
[1750170177137,0.77638086,105490.0,105480.0,0.40065335]
[1750170177540,0.8849094,105490.0,105480.0,0.40065335]
[1750170178424,1.0349094,105490.0,105480.0,0.40065335]
[1750170178634,1.0349094,105490.0,105480.0,0.37915335]
[1750170178866,1.11052682,105490.0,105480.0,0.01705335]
[1750170179331,1.0548094,105490.0,105480.0,0.01705335]
[1750170179544,1.0735094,105490.0,105480.0,0.01705335]
[1750170179956,1.0548094,105490.0,105480.0,0.01705335]
[1750170180592,1.0735094,105490.0,105480.0,0.01705335]
[1750170181579,0.96498086,105490.0,105480.0,0.01705335]
[1750170182282,0.92638086,105490.0,105480.0,0.01705335]
[1750170182681,0.94878086,105490.0,105480.0,0.01705335]
[1750170183048,1.04493008,105490.0,105480.0,0.01705335]
[1750170184206,0.88270086,105490.0,105480.0,0.01705335]
[1750170184444,1.08726086,105490.0,105480.0,0.03925335]
[1750170184854,0.92638086,105490.0,105480.0,0.03925335]
[1750170185059,1.08726086,105490.0,105480.0,0.03925335]
[1750170186002,0.6824097,105490.0,105480.0,0.03925335]
[1750170186248,1.08726086,105490.0,105480.0,0.03925335]